[Event "3rd FIDE WCCC Rapid U10 2019"]
[Site "Minsk"]
[Date "2019.08.16"]
[Round "2.4"]
[White "Bachaliashvili, Eduard"]
[Black "Vetokhin, Savva"]
[Result "0-1"]
[ECO "B20"]
[WhiteElo "1457"]
[BlackElo "2016"]
[Annotator "NA"]
[PlyCount "77"]
[EventDate "2019.08.16"]
[EventType "swiss"]
[EventCountry "BLR"]
[SourceTitle "playchess.com"]
[Source "ChessBase"]
[SourceQuality "1"]
[TimeControl "600+5"]

1. e4 {[%emt 0:00:00]} c5 {[%emt 0:00:00]} 2. c4 {[%emt 0:00:00]} Nc6 {[%emt 0:00:00]} 3. Nc3 {[%emt 0:00:00]} g6 {[%emt 0:00:04]} 4. g3 {[%emt 0:00:01]} Bg7 {[%emt 0:00:01]} 5. Bg2 {[%emt 0:00:01]} d6 {[%emt 0:00:02]} 6. h3 {[%emt 0:00:05] A36: Symmetrical English vs ...g6: 4 Bg2 Bg7} (6. d3 e6 7. Nge2 Nge7 8. O-O O-O 9. Rb1 b6 10. a3 Bb7 11. b4 Qd7 12. Bg5 h6 13. Be3 Nd4 14. f4 f5 15. Qd2 Kh7 16. Rbe1 Rae8 17. Bf2 Nec6 18. b5 Nxe2+ 19. Nxe2 Nd4 20. Nxd4 cxd4 21. exf5 gxf5 22. Bxb7 Qxb7 {0-1 (30) Dominguez Perez,L (2732)-Wojtaszek,R (2727) Huaian 2016}) 6... e6 {[%emt 0:00:02]} 7. Nge2 {[%emt 0:00:03]} Nge7 {[%emt 0:00:02]} 8. O-O {[%emt 0:00:03]} O-O {[%emt 0:00:02]} 9. f4 {[%emt 0:00:03]} Nd4 {[%emt 0:00:02]} 10. d3 {[%emt 0:00:09]} Nec6 {[%emt 0:00:02]} 11. Rb1 {[%emt 0:00:07]} a6 {[%emt 0:00:04]} 12. a3 $146 {[%emt 0:00:02]} ({Predecessor:} 12. Be3 Rb8 13. Qd2 {½-½ (76) Urbanc,S (1662)-Trplan,F (1368) Kozje 2015}) 12... b5 {[%emt 0:00:10]} 13. b4 {[%emt 0:00:55]} bxc4 {[%emt 0:00:40]} 14. dxc4 {[%emt 0:00:03]} Rb8 {[%emt 0:00:16]} 15. b5 {[%emt 0:00:52]} (15. Be3 $15) 15... axb5 {[%emt 0:00:11]} 16. Nxb5 {[%emt 0:00:25]} Nxe2+ {[%emt 0:00:11]} 17. Qxe2 {[%emt 0:00:06]} Nd4 {[%emt 0:00:01]} 18. Qd3 {[%emt 0:00:21]} Ba6 {[%emt 0:00:12]} 19. a4 {[%emt 0:00:34]} Qa5 $15 {[%emt 0:02:38]} 20. Bb2 {[%emt 0:02:53]} e5 {[%emt 0:01:49]} 21. f5 {[%emt 0:00:39]} Bh6 {[%emt 0:00:35]} 22. Bc3 {[%emt 0:01:27]} Qd8 {[%emt 0:00:09]} 23. Bd2 {[%emt 0:01:36]} Bg7 {[%emt 0:00:24]} 24. h4 {[%emt 0:00:46]} Bf6 {[%emt 0:01:00]} 25. Bh6 {[%emt 0:00:15]} Re8 {[%emt 0:00:01]} 26. Qd2 {[%emt 0:00:14]} Ra8 {[%emt 0:00:23]} 27. Bg5 {[%emt 0:00:11]} Bxb5 {[%emt 0:00:26]} 28. axb5 {[%emt 0:00:03]} Bxg5 {[%emt 0:00:09]} 29. hxg5 Ra3 30. Kh2 {[%emt 0:00:07]} Qa8 {[%emt 0:00:09]} 31. Rb2 {[%emt 0:00:14]} Qa4 {[%emt 0:00:03]} 32. Rc1 {[%emt 0:00:09]} Nb3 {[%emt 0:00:02]} 33. Qxd6 {[%emt 0:00:10]} Nxc1 {[%emt 0:00:11]} 34. fxg6 {[%emt 0:00:07]} hxg6 {[%emt 0:00:00]} 35. Rd2 {[%emt 0:00:05]} Qxc4 {[%emt 0:00:10]} 36. Qd7 {[%emt 0:00:03]} Qe6 {[%emt 0:00:02]} 37. Qc7 {[%emt 0:00:09]} Rc8 {[%emt 0:00:04]} 38. Qb7 {[%emt 0:00:05]} Qg4 {[%emt 0:00:17]} 39. Rf2 {[%emt 0:00:00]} 0-1

[Event "3rd FIDE WCCC Rapid U10 2019"]
[Site "Minsk"]
[Date "2019.08.16"]
[Round "2.5"]
[White "Vershinin, Igor"]
[Black "Basiev, Georgiy"]
[Result "1-0"]
[ECO "A00"]
[WhiteElo "2188"]
[BlackElo "1352"]
[Annotator "ChessBase"]
[PlyCount "139"]
[EventDate "2019.08.16"]
[EventType "swiss"]
[EventCountry "BLR"]
[SourceTitle "playchess.com"]
[Source "ChessBase"]
[SourceQuality "1"]
[TimeControl "600+5"]

1. a3 {[%emt 0:00:00]} g6 {[%emt 0:00:00]} 2. d4 {[%emt 0:00:00]} Bg7 {[%emt 0:00:00]} 3. c3 {[%emt 0:00:00]} Nf6 {[%emt 0:00:02]} 4. Nd2 {[%emt 0:00:00]} d6 {[%emt 0:00:01]} 5. e4 {[%emt 0:00:00]} Nbd7 {[%emt 0:00:03]} 6. Bd3 {[%emt 0:00:00]} O-O {[%emt 0:00:03]} 7. Ngf3 {[%emt 0:00:01]} e5 {[%emt 0:00:01]} 8. O-O {[%emt 0:00:03]} Re8 {[%emt 0:00:06]} 9. Re1 {[%emt 0:00:07]} c6 {[%emt 0:00:16]} 10. Nf1 {[%emt 0:00:09]} Nf8 {[%emt 0:00:59]} 11. Qc2 {[%emt 0:00:11]} Bg4 {[%emt 0:00:41]} 12. N1d2 {[%emt 0:00:35]} Nh5 {[%emt 0:01:17]} 13. h3 {[%emt 0:00:08]} Bd7 {[%emt 0:00:32]} 14. Nf1 {[%emt 0:00:02]} Ne6 {[%emt 0:00:47]} 15. dxe5 {[%emt 0:00:08]} dxe5 {[%emt 0:00:04]} 16. Bc4 {[%emt 0:00:33]} h6 {[%emt 0:00:45]} 17. Be3 {[%emt 0:00:24]} Qe7 {[%emt 0:00:34]} 18. Rad1 {[%emt 0:00:04]} Nhf4 {[%emt 0:00:13]} 19. Bxe6 {[%emt 0:00:11]} Bxe6 {[%emt 0:00:44]} 20. Bxf4 {[%emt 0:00:02]} exf4 {[%emt 0:00:01]} 21. Nd4 {[%emt 0:00:22]} Bc4 {[%emt 0:00:53]} 22. Nd2 {[%emt 0:00:04]} Be6 {[%emt 0:00:23]} 23. Nxe6 {[%emt 0:00:10]} Qxe6 {[%emt 0:00:04]} 24. Nf3 {[%emt 0:00:02]} c5 {[%emt 0:00:11]} 25. e5 {[%emt 0:00:25]} Rad8 {[%emt 0:00:12]} 26. Rxd8 {[%emt 0:00:06]} Rxd8 {[%emt 0:00:03]} 27. Qe4 {[%emt 0:00:00]} Qb3 {[%emt 0:01:07]} 28. Qxf4 {[%emt 0:00:13]} Qxb2 {[%emt 0:00:12]} 29. e6 {[%emt 0:00:14]} fxe6 {[%emt 0:00:11]} 30. Rxe6 {[%emt 0:00:03]} Qxc3 {[%emt 0:00:25]} 31. Rxg6 {[%emt 0:00:19]} Kh8 {[%emt 0:00:30]} 32. Rxh6+ {[%emt 0:00:39]} Bxh6 {[%emt 0:00:27]} 33. Qxh6+ {[%emt 0:00:12]} Kg8 {[%emt 0:00:01]} 34. Qg5+ {[%emt 0:00:01]} Kf7 {[%emt 0:00:15]} 35. Qxd8 {[%emt 0:00:14]} Qc1+ {[%emt 0:00:01]} 36. Kh2 {[%emt 0:00:01]} Qf4+ {[%emt 0:00:03]} 37. g3 {[%emt 0:00:02]} Qxf3 {[%emt 0:00:11]} 38. Qc7+ {[%emt 0:00:01]} Kf8 {[%emt 0:00:03]} 39. Qxc5+ {[%emt 0:00:02]} Kf7 {[%emt 0:00:06]} 40. Qxa7 {[%emt 0:00:03]} Kg6 {[%emt 0:00:07]} 41. Qe3 {[%emt 0:00:07]} Qc6 {[%emt 0:00:09]} 42. h4 {[%emt 0:00:01]} Kh7 {[%emt 0:00:03]} 43. Qe7+ {[%emt 0:00:10]} Kg6 {[%emt 0:00:13]} 44. Qg5+ {[%emt 0:00:17]} Kh7 {[%emt 0:00:08]} 45. h5 {[%emt 0:00:01]} Qc2 {[%emt 0:00:13]} 46. Qg6+ {[%emt 0:00:01]} Qxg6 {[%emt 0:00:03]} 47. hxg6+ {[%emt 0:00:02]} Kxg6 {[%emt 0:00:01]} 48. f4 {[%emt 0:00:01]} Kf5 {[%emt 0:00:01]} 49. Kh3 {[%emt 0:00:01]} b5 {[%emt 0:00:02]} 50. Kh4 {[%emt 0:00:01]} Ke4 {[%emt 0:00:01]} 51. g4 {[%emt 0:00:03]} Kd4 {[%emt 0:00:00]} 52. g5 {[%emt 0:00:01]} Kc3 {[%emt 0:00:01]} 53. g6 {[%emt 0:00:01]} Kb3 {[%emt 0:00:01]} 54. g7 {[%emt 0:00:01]} Kxa3 {[%emt 0:00:01]} 55. g8=Q {[%emt 0:00:05]} b4 {[%emt 0:00:01]} 56. Qc4 {[%emt 0:00:03]} b3 {[%emt 0:00:02]} 57. f5 {[%emt 0:00:06]} b2 {[%emt 0:00:01]} 58. Qc3+ {[%emt 0:00:01]} Ka2 {[%emt 0:00:01]} 59. Qxb2+ {[%emt 0:00:01]} Kxb2 {[%emt 0:00:02]} 60. f6 {[%emt 0:00:01]} Kc3 {[%emt 0:00:01]} 61. f7 {[%emt 0:00:01]} Kd4 {[%emt 0:00:01]} 62. f8=Q {[%emt 0:00:02]} Ke4 {[%emt 0:00:01]} 63. Qd6 {[%emt 0:00:03]} Kf5 {[%emt 0:00:01]} 64. Kg3 {[%emt 0:00:01]} Ke4 {[%emt 0:00:01]} 65. Qd2 {[%emt 0:00:03]} Kf5 {[%emt 0:00:01]} 66. Qe3 {[%emt 0:00:01]} Kf6 {[%emt 0:00:02]} 67. Qe4 {[%emt 0:00:00]} Kg5 {[%emt 0:00:01]} 68. Qe6 {[%emt 0:00:03]} Kh5 {[%emt 0:00:04]} 69. Kf4 {[%emt 0:00:01]} Kh4 {[%emt 0:00:01]} 70. Qh6# {[%emt 0:00:01]} 1-0

[Event "3rd FIDE WCCC Rapid U10 2019"]
[Site "Minsk"]
[Date "2019.08.16"]
[Round "2.6"]
[White "Sitnikov, Arseni"]
[Black "Koshulyan, Egor A."]
[Result "0-1"]
[ECO "B34"]
[WhiteElo "1184"]
[BlackElo "1872"]
[Annotator "NA"]
[PlyCount "32"]
[EventDate "2019.08.16"]
[EventType "swiss"]
[EventCountry "BLR"]
[SourceTitle "playchess.com"]
[Source "ChessBase"]
[SourceQuality "1"]
[TimeControl "600+5"]

1. e4 {[%emt 0:00:00]} c5 {[%emt 0:00:00]} 2. Nf3 {[%emt 0:00:00]} Nc6 {[%emt 0:00:00]} 3. d4 {[%emt 0:00:00]} cxd4 {[%emt 0:00:00]} 4. Nxd4 {[%emt 0:00:02]} Nf6 {[%emt 0:00:00]} 5. Nc3 {[%emt 0:00:03]} e5 {[%emt 0:00:00]} 6. Nf5 {[%emt 0:00:10]} d5 {[%emt 0:00:00]} 7. exd5 {[%emt 0:02:09]} Bxf5 {[%emt 0:00:34]} 8. dxc6 {[%emt 0:00:03]} bxc6 {[%emt 0:00:01]} 9. Qf3 {[%emt 0:01:27]} Qd7 {[%emt 0:00:47]} 10. Bd3 {[%emt 0:02:41]} e4 {[%emt 0:00:49]} 11. Nxe4 {[%emt 0:01:06]} Bxe4 {[%emt 0:00:07]} 12. Bxe4 {[%emt 0:01:05]} Qe6 {[%emt 0:00:07]} 13. O-O {[%emt 0:00:15]} Nxe4 {[%emt 0:00:05]} 14. Re1 {[%emt 0:00:18]} f5 {[%emt 0:00:28]} 15. Qe2 {[%emt 0:00:33]} Bc5 {[%emt 0:00:42]} 16. Be3 {[%emt 0:00:05]} Be7 {[%emt 0:00:37]} 0-1

[Event "3rd FIDE WCCC Rapid U10 2019"]
[Site "Minsk"]
[Date "2019.08.16"]
[Round "3.1"]
[White "Samunenkov, Ihor"]
[Black "Agkatsev, Albert A"]
[Result "1/2-1/2"]
[ECO "A05"]
[WhiteElo "1964"]
[BlackElo "1573"]
[Annotator "NA"]
[PlyCount "91"]
[EventDate "2019.08.16"]
[EventType "swiss"]
[EventCountry "BLR"]
[SourceTitle "playchess.com"]
[Source "ChessBase"]
[SourceQuality "1"]
[TimeControl "600+5"]

1. Nf3 {[%emt 0:00:00]} Nf6 {[%emt 0:00:00]} 2. d4 {[%emt 0:00:02]} d5 {[%emt 0:00:00]} 3. g3 {[%emt 0:00:02]} Bf5 {[%emt 0:00:02]} 4. c4 {[%emt 0:00:04]} e6 {[%emt 0:00:08]} 5. Nc3 {[%emt 0:00:16]} Bb4 {[%emt 0:00:05]} (5... Nc6 $11 6. Bg2 Bb4) 6. Qa4+ {[%emt 0:00:43]} Nc6 {[%emt 0:00:06]} 7. Ne5 {[%emt 0:00:40]} Bxc3+ {[%emt 0:00:10]} 8. bxc3 {[%emt 0:00:03]} O-O {[%emt 0:00:22]} 9. Nxc6 {[%emt 0:00:18]} bxc6 {[%emt 0:00:01]} 10. Qxc6 {[%emt 0:00:09]} Ne4 {[%emt 0:02:34]} 11. Ba3 {[%emt 0:01:28]} Re8 {[%emt 0:00:27]} 12. Rc1 {[%emt 0:00:22]} Qg5 {[%emt 0:02:23]} 13. e3 {[%emt 0:02:07]} Qh5 {[%emt 0:02:14]} 14. Bg2 {[%emt 0:01:29]} Ng5 {[%emt 0:00:16]} 15. f4 {[%emt 0:01:53]} Nf3+ {[%emt 0:00:06]} 16. Kf2 {[%emt 0:00:03]} Nd2 {[%emt 0:01:07]} 17. cxd5 {[%emt 0:00:59]} (17. Qa4 $17 {is a better defense.}) 17... exd5 $15 {[%emt 0:00:09]} (17... Be4 $19 18. Qa4 Bxg2 19. Kxg2 Qxd5+ 20. Kh3 e5) 18. Qxd5 {[%emt 0:00:12]} Rad8 {[%emt 0:00:25]} 19. Qb5 {[%emt 0:00:27]} Qg6 {[%emt 0:00:30]} 20. Qe2 {[%emt 0:00:14]} Ne4+ {[%emt 0:00:04]} 21. Bxe4 {[%emt 0:00:04]} Rxe4 {[%emt 0:00:01]} 22. Rhe1 {[%emt 0:00:04]} Rde8 {[%emt 0:00:04]} 23. Kg1 {[%emt 0:00:04]} Bg4 {[%emt 0:00:05]} 24. Qf2 {[%emt 0:00:03]} Qe6 {[%emt 0:00:02]} 25. Bc5 {[%emt 0:00:09]} f5 {[%emt 0:00:02]} 26. Rb1 {[%emt 0:00:06]} a6 {[%emt 0:00:03]} 27. Rbc1 {[%emt 0:00:04]} Rxe3 {[%emt 0:00:05]} 28. Rxe3 {[%emt 0:00:08]} Qxe3 {[%emt 0:00:01]} 29. Qxe3 {[%emt 0:00:03]} Rxe3 {[%emt 0:00:01]} 30. Rc2 {[%emt 0:00:04]} Re1+ {[%emt 0:00:03]} 31. Kg2 {[%emt 0:00:03]} Re2+ {[%emt 0:00:04]} 32. Rxe2 {[%emt 0:00:04]} Bxe2 {[%emt 0:00:03]} 33. d5 {[%emt 0:00:09]} Bc4 {[%emt 0:00:04]} 34. d6 {[%emt 0:00:03]} cxd6 {[%emt 0:00:01]} 35. Bxd6 {[%emt 0:00:01]} Bxa2 {[%emt 0:00:01]} 36. Kf3 Kf7 37. Ke3 {[%emt 0:00:06]} Ke6 {[%emt 0:00:01]} 38. Be5 {[%emt 0:00:01]} g6 {[%emt 0:00:03]} 39. Kd4 {[%emt 0:00:01]} Kd7 {[%emt 0:00:08]} 40. Kc5 {[%emt 0:00:10]} h5 {[%emt 0:00:14]} 41. h4 {[%emt 0:00:04]} a5 {[%emt 0:00:14]} 42. c4 {[%emt 0:00:12]} a4 {[%emt 0:00:03]} 43. Kb5 {[%emt 0:00:02]} a3 {[%emt 0:00:07]} 44. Bd4 {[%emt 0:00:16]} Bb1 {[%emt 0:00:05]} 45. c5 {[%emt 0:00:04]} Be4 {[%emt 0:00:02]} 46. Kb6 {[%emt 0:00:03]} 1/2-1/2

[Event "3rd FIDE WCCC Rapid U10 2019"]
[Site "Minsk"]
[Date "2019.08.16"]
[Round "3.2"]
[White "Zverev, Lev"]
[Black "Korsakov, Egor"]
[Result "1-0"]
[ECO "C62"]
[WhiteElo "1881"]
[BlackElo "1288"]
[Annotator "NA"]
[PlyCount "103"]
[EventDate "2019.08.16"]
[EventType "swiss"]
[EventCountry "BLR"]
[SourceTitle "playchess.com"]
[Source "ChessBase"]
[SourceQuality "1"]
[TimeControl "600+5"]

1. e4 {[%emt 0:00:00]} e5 {[%emt 0:00:00]} 2. Nf3 {[%emt 0:00:00]} Nc6 {[%emt 0:00:00]} 3. Bb5 {[%emt 0:00:01]} d6 {[%emt 0:00:00]} 4. c3 {[%emt 0:00:02]} Bd7 {[%emt 0:00:01]} 5. d3 {[%emt 0:00:03]} Be7 {[%emt 0:00:09]} 6. Nbd2 {[%emt 0:00:03] C62: Ruy Lopez: Steinitz Defence} a6 {[%emt 0:00:04]} 7. Ba4 {[%emt 0:00:01]} Nf6 {[%emt 0:00:06]} 8. O-O {[%emt 0:00:03]} O-O {[%emt 0:00:04]} 9. h3 {[%emt 0:00:02]} h6 {[%emt 0:00:09]} 10. Re1 {[%emt 0:00:02]} Re8 {[%emt 0:00:13]} 11. Nf1 {[%emt 0:00:03]} Bf8 {[%emt 0:00:20]} 12. Ng3 {[%emt 0:00:17]} (12. Bc2 Ne7 13. Nh4 g6 14. Qf3 Nc6 15. Ne3 Bg7 16. Bd2 Be6 17. Bb3 Bxb3 18. axb3 a5 19. Ng4 Nxg4 20. Qxg4 {1-0 (56) Movsesian,S (2721)-Carlsen,M (2802) Moscow 2010}) 12... Ne7 {[%emt 0:00:12]} 13. Bc2 {[%emt 0:00:29]} Ng6 {[%emt 0:00:09]} 14. d4 {[%emt 0:00:05]} exd4 $146 {[%emt 0:00:14]} ({Predecessor:} 14... c5 15. d5 Nf4 16. a4 g6 17. a5 N6h5 18. Nxh5 Nxh5 {1-0 (44) Gopal,G (2572)-Ghader Pour,S (2248) Dubai 2012}) 15. cxd4 {[%emt 0:00:04]} Bc6 {[%emt 0:01:05]} 16. d5 {[%emt 0:00:43]} Bd7 {[%emt 0:00:13]} 17. Nd4 {[%emt 0:00:03]} c6 {[%emt 0:00:44]} 18. dxc6 {[%emt 0:00:15]} Bxc6 {[%emt 0:00:13]} 19. Nxc6 {[%emt 0:00:35]} bxc6 {[%emt 0:00:01]} 20. Be3 {[%emt 0:00:04]} Ne5 {[%emt 0:00:33]} 21. b3 {[%emt 0:00:27]} d5 {[%emt 0:00:46]} 22. f4 {[%emt 0:00:11]} Ng6 $16 {[%emt 0:01:15]} 23. e5 {[%emt 0:00:05]} Nxe5 {[%emt 0:00:39]} 24. fxe5 {[%emt 0:00:07]} Rxe5 {[%emt 0:00:21]} 25. Bf2 {[%emt 0:00:08]} Rxe1+ {[%emt 0:00:25]} 26. Qxe1 {[%emt 0:00:05]} d4 {[%emt 0:00:28]} 27. Rd1 {[%emt 0:00:18]} c5 {[%emt 0:00:09]} 28. b4 {[%emt 0:00:43]} Qb6 {[%emt 0:00:10]} 29. bxc5 {[%emt 0:00:17]} Bxc5 {[%emt 0:00:05]} 30. Ne4 {[%emt 0:00:31]} Nxe4 {[%emt 0:00:46]} 31. Qxe4 {[%emt 0:00:05]} d3 {[%emt 0:00:20]} 32. Qxa8+ {[%emt 0:00:03]} Kh7 {[%emt 0:00:11]} 33. Bxd3+ {[%emt 0:00:04]} g6 {[%emt 0:00:01]} 34. Qf3 {[%emt 0:00:15]} Kg7 {[%emt 0:00:09]} 35. Rf1 {[%emt 0:00:09]} Bxf2+ {[%emt 0:00:13]} 36. Qxf2 {[%emt 0:00:01]} Qe6 {[%emt 0:00:06]} 37. Qxf7+ {[%emt 0:00:12]} Qxf7 {[%emt 0:00:00]} 38. Rxf7+ {[%emt 0:00:02]} Kxf7 {[%emt 0:00:01]} 39. Bxa6 {[%emt 0:00:02]} Ke6 {[%emt 0:00:01]} 40. Bc4+ {[%emt 0:00:01]} Ke5 {[%emt 0:00:01]} 41. Kf2 {[%emt 0:00:03]} Kd4 {[%emt 0:00:02]} 42. Bb3 {[%emt 0:00:01]} g5 {[%emt 0:00:03]} 43. Kf3 {[%emt 0:00:02]} h5 {[%emt 0:00:03]} 44. Bd1 {[%emt 0:00:04]} g4+ {[%emt 0:00:10]} 45. hxg4 {[%emt 0:00:01]} hxg4+ {[%emt 0:00:01]} 46. Kxg4 {[%emt 0:00:02]} Ke5 {[%emt 0:00:00]} 47. a4 {[%emt 0:00:02]} Kd6 {[%emt 0:00:03]} 48. Kf5 {[%emt 0:00:02]} Kc5 {[%emt 0:00:02]} 49. g4 {[%emt 0:00:01]} Kb6 {[%emt 0:00:01]} 50. g5 {[%emt 0:00:01]} Ka6 {[%emt 0:00:00]} 51. g6 {[%emt 0:00:02]} Kb6 {[%emt 0:00:00]} 52. g7 {[%emt 0:00:00]} 1-0

[Event "3rd FIDE WCCC Rapid U10 2019"]
[Site "Minsk"]
[Date "2019.08.16"]
[Round "3.3"]
[White "Vetokhin, Savva"]
[Black "Burak, Vyacheslav"]
[Result "1-0"]
[ECO "B90"]
[WhiteElo "2016"]
[BlackElo "1509"]
[Annotator "NA"]
[PlyCount "83"]
[EventDate "2019.08.16"]
[EventType "swiss"]
[EventCountry "BLR"]
[SourceTitle "playchess.com"]
[Source "ChessBase"]
[SourceQuality "1"]
[TimeControl "600+5"]

1. e4 {[%emt 0:00:00]} c5 {[%emt 0:00:00]} 2. Nf3 {[%emt 0:00:00]} d6 {[%emt 0:00:00]} 3. d4 {[%emt 0:00:01]} cxd4 4. Nxd4 {[%emt 0:00:01]} Nf6 {[%emt 0:00:00]} 5. Nc3 a6 6. Be3 {[%emt 0:00:08]} e6 {[%emt 0:00:01]} 7. f3 {[%emt 0:00:07]} b5 {[%emt 0:00:01]} 8. Qd2 {[%emt 0:00:08]} Bb7 {[%emt 0:00:02]} 9. Be2 {[%emt 0:00:04]} Nbd7 {[%emt 0:00:00]} 10. O-O {[%emt 0:00:11]} Be7 {[%emt 0:00:02]} 11. Rad1 {[%emt 0:00:38]} O-O {[%emt 0:00:07]} 12. Qe1 $146 {[%emt 0:00:20] B84: Sicilian Scheveningen: 6 Be2 a6, lines without early Be3} ({Predecessor:} 12. Bd3 b4 13. Nce2 d5 14. Ng3 Ne5 15. Qe2 Qc7 16. Rc1 dxe4 17. Nxe4 Nd5 18. Bd2 Qb6 19. c3 Nxd3 20. Qxd3 e5 21. Be3 Nxe3 22. Qxe3 exd4 {0-1 (22) Gockner,M (1954)-Sandhoefner,F (2307) Vienna 2013}) 12... Ne5 {[%emt 0:00:18]} 13. Qg3 {[%emt 0:00:20]} b4 14. Nb1 {[%emt 0:00:47]} Rc8 {[%emt 0:00:59]} 15. c3 {[%emt 0:00:11]} a5 {[%emt 0:00:35]} 16. cxb4 {[%emt 0:01:27]} axb4 {[%emt 0:00:01]} 17. Nd2 {[%emt 0:00:03]} Kh8 {[%emt 0:00:36]} 18. Rc1 {[%emt 0:00:05]} Qa5 {[%emt 0:00:26]} 19. Ra1 {[%emt 0:01:21]} Ba6 {[%emt 0:00:25]} 20. N2b3 {[%emt 0:00:45]} Qa4 {[%emt 0:00:33]} 21. Bxa6 {[%emt 0:00:40]} Qxa6 {[%emt 0:00:04]} 22. Qf2 {[%emt 0:00:22]} d5 {[%emt 0:00:31]} 23. Bf4 {[%emt 0:00:38]} Bd6 {[%emt 0:00:56]} 24. Qg3 {[%emt 0:00:10]} Nh5 {[%emt 0:00:18]} 25. Qh4 {[%emt 0:00:01]} Nxf4 26. Qxf4 Nc4 {[%emt 0:02:23]} 27. Qg5 {[%emt 0:00:09]} dxe4 {[%emt 0:00:27]} 28. fxe4 {[%emt 0:00:06]} Nxb2 {[%emt 0:00:39]} 29. e5 {[%emt 0:00:11]} Rc5 {[%emt 0:01:14]} 30. Nxc5 $11 {[%emt 0:02:19]} Bxc5 {[%emt 0:00:01]} 31. Qd2 {[%emt 0:00:31]} Qb6 {[%emt 0:00:01]} 32. Rf4 {[%emt 0:00:23]} Rd8 {[%emt 0:00:01]} 33. Kh1 {[%emt 0:00:02]} Bxd4 {[%emt 0:00:02]} 34. Rxf7 {[%emt 0:00:12]} Bxe5 {[%emt 0:00:01]} 35. Qg5 {[%emt 0:00:04]} Qd6 {[%emt 0:00:05]} 36. Raf1 {[%emt 0:00:05]} Rg8 {[%emt 0:00:17]} 37. h4 {[%emt 0:00:12]} Nc4 {[%emt 0:00:34]} 38. h5 {[%emt 0:00:01]} Nd2 {[%emt 0:00:08]} 39. Rd1 {[%emt 0:00:05]} Bc3 {[%emt 0:00:04]} 40. h6 {[%emt 0:00:08]} Qd8 {[%emt 0:00:48]} 41. hxg7+ {[%emt 0:00:02]} Rxg7 {[%emt 0:00:05]} 42. Qxd8+ {[%emt 0:00:01]} 1-0

[Event "3rd FIDE WCCC Rapid U10 2019"]
[Site "Minsk"]
[Date "2019.08.16"]
[Round "3.5"]
[White "Koshulyan, Egor A."]
[Black "Nikulin, Aleksandr N."]
[Result "1-0"]
[ECO "B02"]
[WhiteElo "1872"]
[BlackElo "1285"]
[Annotator "NA"]
[PlyCount "105"]
[EventDate "2019.08.16"]
[EventType "swiss"]
[EventCountry "BLR"]
[SourceTitle "playchess.com"]
[Source "ChessBase"]
[SourceQuality "1"]
[TimeControl "600+5"]

1. e4 {[%emt 0:00:00]} Nf6 {[%emt 0:00:04]} 2. e5 {[%emt 0:00:00]} Nd5 {[%emt 0:00:08]} 3. Nc3 {[%emt 0:00:12]} Nb6 {[%emt 0:00:22]} 4. d4 {[%emt 0:00:08]} d6 {[%emt 0:00:07]} 5. Nf3 {[%emt 0:00:35]} Bg4 {[%emt 0:00:16]} 6. Bd3 {[%emt 0:00:59]} Nc6 {[%emt 0:00:31]} 7. Bb5 {[%emt 0:01:22]} a6 {[%emt 0:00:32]} 8. Bxc6+ {[%emt 0:00:12]} bxc6 {[%emt 0:00:05]} 9. Qe2 {[%emt 0:00:36]} g6 {[%emt 0:00:32]} 10. Qe4 {[%emt 0:01:01]} Bxf3 {[%emt 0:00:47]} 11. Qxf3 {[%emt 0:00:03]} Qd7 {[%emt 0:01:21]} 12. O-O {[%emt 0:00:29]} Bg7 {[%emt 0:00:24]} 13. Re1 {[%emt 0:00:08]} O-O {[%emt 0:00:12]} 14. Bf4 {[%emt 0:00:32]} Rad8 $14 {[%emt 0:01:55]} 15. Bg3 {[%emt 0:00:20]} Nc4 {[%emt 0:00:27]} 16. b3 {[%emt 0:00:06]} Na3 {[%emt 0:00:06]} 17. Qe4 {[%emt 0:00:29]} dxe5 {[%emt 0:00:31]} 18. dxe5 {[%emt 0:00:23]} Qd2 {[%emt 0:00:37]} 19. Qxc6 {[%emt 0:00:20]} Qxc2 {[%emt 0:00:41]} 20. Rac1 {[%emt 0:00:14]} Qf5 {[%emt 0:00:22]} 21. Na4 {[%emt 0:01:18]} Bh6 {[%emt 0:00:14]} 22. Rcd1 {[%emt 0:00:11]} Qg4 {[%emt 0:00:33]} 23. f3 {[%emt 0:00:52]} Qb4 {[%emt 0:00:38]} 24. Qxc7 {[%emt 0:00:31]} Be3+ {[%emt 0:00:02]} 25. Kh1 {[%emt 0:00:02]} Nb5 {[%emt 0:00:05]} 26. Qxd8 {[%emt 0:00:11]} Rxd8 {[%emt 0:00:01]} 27. Rxd8+ {[%emt 0:00:01]} Kg7 {[%emt 0:00:01]} 28. Rxe3 {[%emt 0:00:04]} Nc7 {[%emt 0:00:02]} 29. Re1 {[%emt 0:00:04]} Ne6 {[%emt 0:00:01]} 30. Rdd1 {[%emt 0:00:02]} Qa3 {[%emt 0:00:04]} 31. Re2 {[%emt 0:00:05]} Qb4 {[%emt 0:00:01]} 32. Be1 {[%emt 0:00:05]} Qb5 {[%emt 0:00:01]} 33. Nc3 {[%emt 0:00:05]} Qb7 {[%emt 0:00:04]} 34. Bg3 {[%emt 0:00:03]} Qc7 {[%emt 0:00:03]} 35. Ne4 {[%emt 0:00:03]} Qb7 {[%emt 0:00:03]} 36. Rc2 {[%emt 0:00:02]} Qb5 {[%emt 0:00:01]} 37. h3 {[%emt 0:00:08]} h5 {[%emt 0:00:04]} 38. Rb2 {[%emt 0:00:10]} Qc6 {[%emt 0:00:05]} 39. Rbd2 {[%emt 0:00:03]} Qb5 {[%emt 0:00:07]} 40. Nc3 {[%emt 0:00:06]} Qc5 {[%emt 0:00:02]} 41. Nd5 {[%emt 0:00:03]} Nd8 {[%emt 0:00:06]} 42. Nxe7 {[%emt 0:00:06]} Qxe7 {[%emt 0:00:00]} 43. Rxd8 {[%emt 0:00:01]} Qa3 {[%emt 0:00:03]} 44. R8d2 {[%emt 0:00:01]} Qb4 {[%emt 0:00:01]} 45. Rd4 {[%emt 0:00:04]} Qa3 {[%emt 0:00:02]} 46. Bh4 {[%emt 0:00:02]} Qxa2 {[%emt 0:00:03]} 47. Bf6+ {[%emt 0:00:00]} Kh6 {[%emt 0:00:08]} 48. Rd8 {[%emt 0:00:01]} g5 {[%emt 0:00:02]} 49. Rg8 {[%emt 0:00:14]} Qxb3 {[%emt 0:00:05]} 50. Rdd8 {[%emt 0:00:00]} Qe3 {[%emt 0:00:11]} 51. Rg7 {[%emt 0:00:04]} Qc1+ {[%emt 0:00:09]} 52. Kh2 {[%emt 0:00:00]} Qf4+ {[%emt 0:00:02]} 53. g3 {[%emt 0:00:00]} 1-0